bitfinex-derivatives/quotes_BTCF0:USTF0_20241122
["timestamp","ask_amount","ask_price","bid_price","bid_amount"]
[1732263036536,0.12698293,99043.0,99033.0,0.10176]
[1732263036931,0.050424,99035.0,99033.0,0.152185]
[1732263037235,0.050424,99035.0,99033.0,0.050425]
[1732263037535,0.050424,99034.0,99033.0,0.050425]
[1732263038130,0.050425,99033.0,99032.0,0.0008]
[1732263038437,0.050427,99029.0,99028.0,0.10176]
[1732263038733,0.050422,99039.0,99028.0,0.10176]
[1732263039034,0.050427,99029.0,99028.0,0.10176]
[1732263040123,0.050427,99029.0,99028.0,0.152187]
[1732263040733,0.050427,99029.0,99028.0,0.10176]
[1732263041229,0.35452467,99040.0,99028.0,0.10176]
[1732263041425,0.050424,99034.0,99033.0,0.050424]
[1732263041939,0.050426,99032.0,99028.0,0.10176]
[1732263042139,0.050426,99032.0,99031.0,0.050426]
[1732263043127,0.050426,99032.0,99028.0,0.10176]
[1732263043343,0.050427,99029.0,99028.0,0.10176]
[1732263043841,0.050427,99029.0,99028.0,0.152187]
[1732263046043,0.050427,99029.0,99028.0,0.050427]
[1732263046550,0.12698293,99043.0,99028.0,0.050427]
[1732263046739,0.050426,99031.0,99028.0,0.050427]
[1732263046937,0.12698293,99040.0,99026.0,0.3616]
[1732263047145,0.050426,99032.0,99026.0,0.3608]
[1732263047442,0.050426,99032.0,99031.0,0.050426]
[1732263047846,0.050427,99029.0,99027.0,0.050428]
[1732263048350,0.050427,99029.0,99028.0,0.050427]
[1732263048749,0.12070836,99040.0,99028.0,0.050427]
[1732263048948,0.050426,99031.0,99028.0,0.050427]
[1732263049252,0.050426,99031.0,99030.0,0.050426]
[1732263050654,0.3608,99048.0,99027.0,0.050428]
[1732263050952,0.3608,99048.0,99035.0,0.3608]
[1732263051942,0.050422,99041.0,99040.0,0.050421]
[1732263052352,0.050418,99047.0,99035.0,0.3608]
[1732263052546,0.3608,99048.0,99035.0,0.3608]
[1732263052547,0.050421,99040.0,99035.0,0.3608]
[1732263052851,0.050421,99040.0,99039.0,0.050422]
[1732263054046,0.050419,99044.0,99036.0,0.050423]
[1732263054245,0.050419,99044.0,99035.0,0.3608]
[1732263054445,0.050419,99044.0,99041.0,0.05042]
[1732263054654,0.050419,99044.0,99042.0,0.05042]
[1732263054954,0.050416,99050.0,99049.0,0.050416]
[1732263055265,0.050416,99050.0,99049.0,0.01138509]
[1732263055561,0.411216,99050.0,99049.0,0.01138509]
[1732263055852,0.66368,99050.0,99022.0,0.13278]
[1732263056057,0.12698293,99040.0,99022.0,0.13278]
[1732263056352,0.12698293,99040.0,99027.0,0.050428]
[1732263056554,0.050427,99029.0,99022.0,0.13278]
[1732263056744,0.050427,99029.0,99028.0,0.050427]
[1732263056941,0.050426,99032.0,99023.0,0.050429]
[1732263057145,0.050426,99032.0,99023.0,0.05043]
[1732263057357,0.12698293,99040.0,99022.0,0.13278]
[1732263057546,0.050426,99031.0,99030.0,0.050426]
[1732263058254,0.050428,99028.0,99027.0,0.050428]
[1732263058860,0.1207102,99040.0,99022.0,0.13278]
[1732263059053,0.050427,99029.0,99028.0,0.050427]
[1732263061961,0.1207102,99040.0,99025.0,0.3608]
[1732263062457,0.1207102,99040.0,99032.0,0.050425]
[1732263062458,0.050424,99035.0,99032.0,0.050425]
[1732263062659,0.050424,99035.0,99025.0,0.3608]
[1732263062957,0.050424,99035.0,99034.0,0.411224]
[1732263064155,0.1207102,99040.0,99034.0,0.3608]
[1732263064359,0.050423,99038.0,99037.0,0.050422]
[1732263064755,0.050421,99040.0,99038.0,0.050422]
[1732263065050,0.050421,99040.0,99039.0,0.050422]
[1732263067867,0.050424,99035.0,99034.0,0.513664]
[1732263068064,0.050424,99035.0,99034.0,0.10168]
[1732263068357,0.050424,99035.0,99032.0,0.050425]
[1732263068562,0.050424,99034.0,99033.0,0.050425]
[1732263069763,0.05043,99026.0,99025.0,0.050429]
[1732263069963,0.050421,99040.0,99025.0,0.10168]
[1732263070168,0.050427,99029.0,99028.0,0.050427]
[1732263072660,0.050428,99026.0,99025.0,0.10168]
[1732263072861,0.050428,99026.0,99025.0,0.152109]
[1732263073257,0.61476586,99035.0,99023.0,0.10168]
[1732263073459,0.050429,99024.0,99023.0,0.10168]
[1732263074058,0.050429,99024.0,99023.0,0.15211]
[1732263074858,0.050429,99024.0,99023.0,0.05043]
[1732263080871,0.050431,99021.0,99020.0,0.36156]
[1732263081075,0.050431,99021.0,99020.0,0.3608]
[1732263081264,0.050431,99021.0,99016.0,0.050433]
[1732263081265,0.48778293,99033.0,99016.0,0.050433]
[1732263081459,0.12698293,99026.0,99013.0,0.13318]
[1732263081663,0.050434,99016.0,99015.0,0.050433]
[1732263081962,0.050434,99016.0,99013.0,0.13318]
[1732263082165,0.12698293,99026.0,99018.0,0.050432]
[1732263082166,0.050433,99019.0,99018.0,0.050432]
[1732263084363,0.050433,99019.0,99018.0,0.411232]
[1732263084565,0.050433,99019.0,99018.0,0.050432]
[1732263085165,0.050433,99019.0,99018.0,0.411232]
[1732263085362,0.050431,99024.0,99023.0,0.050429]
[1732263085666,0.12698293,99030.0,99018.0,0.3608]
[1732263085667,0.050432,99022.0,99021.0,0.05043]
[1732263086968,0.050428,99027.0,99019.0,0.050432]
[1732263087273,0.0302,99038.0,99018.0,0.3608]
[1732263087477,0.050429,99025.0,99023.0,0.050429]
[1732263087662,0.050429,99025.0,99018.0,0.3608]
[1732263088280,0.050429,99025.0,99023.0,0.05043]
[1732263088576,0.050429,99024.0,99023.0,0.05043]
[1732263089270,0.12698293,99033.0,99018.0,0.3608]
[1732263089577,0.050432,99019.0,99018.0,0.411232]
[1732263091174,0.050435,99013.0,99004.0,0.10524]
[1732263091373,0.050435,99013.0,99012.0,0.05195078]
[1732263092068,0.12698293,99022.0,99012.0,0.05195078]
[1732263092776,0.050435,99013.0,99012.0,0.05195078]
[1732263096472,0.050435,99013.0,99012.0,0.00151478]
[1732263096674,0.050435,99013.0,99012.0,0.05195078]
[1732263104175,0.12698293,99030.0,99012.0,0.00151478]
[1732263104385,0.050435,99014.0,99013.0,0.050435]
[1732263106675,0.050432,99020.0,99013.0,0.050435]
[1732263106878,1.5,99029.0,99017.0,0.050433]
[1732263107083,0.050432,99019.0,99017.0,0.050433]
[1732263107678,1.5,99029.0,99017.0,0.050433]
[1732263107880,0.050432,99018.0,99017.0,0.050433]
[1732263110288,0.050434,99016.0,99015.0,0.050434]
[1732263112285,0.050429,99025.0,99024.0,0.050428]
[1732263113397,0.05767279,99030.0,99019.0,0.050431]
[1732263113584,0.050431,99020.0,99019.0,0.050431]
[1732263114185,0.05139787,99030.0,99019.0,0.050431]
[1732263114385,0.050431,99020.0,99019.0,0.050431]
[1732263115594,0.050427,99029.0,99013.0,0.050435]
[1732263115892,0.050435,99013.0,99012.0,0.00151478]
[1732263116588,0.050435,99013.0,99012.0,0.05195078]
[1732263123496,0.050434,99017.0,99016.0,0.050433]
[1732263125807,0.050434,99015.0,99014.0,0.3608]
[1732263125999,0.0318,99022.0,99012.0,0.00151478]
[1732263126292,0.05043,99023.0,99022.0,0.05043]
[1732263128696,0.050433,99019.0,99018.0,0.050432]
[1732263133588,0.050436,99012.0,99011.0,0.10304]
[1732263133798,0.050436,99012.0,99011.0,0.153476]
[1732263135296,0.050437,99009.0,99008.0,0.3608]
[1732263136191,0.050436,99012.0,99008.0,0.3608]
[1732263136392,0.0316,99017.0,99008.0,0.3608]
[1732263136595,0.050437,99009.0,99008.0,0.3608]
[1732263139400,0.050437,99009.0,99008.0,0.411238]
[1732263139709,0.12710121,99021.0,99008.0,0.411238]
[1732263139710,0.0094,99030.0,99008.0,0.050438]
[1732263140000,0.050436,99011.0,99010.0,0.050435]
[1732263140398,0.050438,99008.0,99007.0,0.3608]
[1732263140998,0.050438,99008.0,99000.0,0.1]
[1732263141203,0.050441,99001.0,99000.0,0.1]
[1732263142304,0.653481,99001.0,98987.0,0.412048]
[1732263142502,0.3608,99004.0,98979.0,0.050452]
[1732263142503,0.3608,98991.0,98979.0,0.050452]
[1732263142697,0.3608,98991.0,98980.0,0.050452]
[1732263142698,0.050452,98981.0,98980.0,0.050452]
[1732263142900,0.050454,98977.0,98975.0,0.36156]
[1732263143106,0.050454,98977.0,98975.0,0.411254]
[1732263143811,0.050452,98980.0,98979.0,0.050452]
[1732263144201,0.050454,98976.0,98975.0,0.3608]
[1732263145105,0.3608,98991.0,98958.0,0.0024]
[1732263145106,0.3608,98981.0,98966.0,0.3608]
[1732263145304,0.16683974,98980.0,98966.0,0.3608]
[1732263145506,0.050455,98974.0,98966.0,0.3608]
[1732263145700,0.050456,98973.0,98966.0,0.3608]
[1732263146095,0.30312,98973.0,98966.0,0.3608]
[1732263146600,0.050457,98971.0,98957.0,0.3608]
[1732263146808,0.050463,98959.0,98957.0,0.3608]
[1732263147708,0.33456,98958.0,98957.0,0.3608]
[1732263148296,0.33456,98958.0,98948.0,0.0315]
[1732263148500,0.0314,98958.0,98956.0,0.050464]
[1732263149003,0.10212,98969.0,98954.0,0.3608]
[1732263149210,0.10212,98969.0,98965.0,0.050459]
[1732263149401,0.10212,98969.0,98964.0,0.3608]
[1732263149601,1.5,98968.0,98966.0,0.050459]
[1732263150312,0.3608,98974.0,98972.0,0.050456]
[1732263151904,0.411255,98974.0,98972.0,0.050456]
[1732263152707,0.3608,98974.0,98972.0,0.050456]
[1732263153002,1.53282001,98985.0,98966.0,0.0311]
[1732263153003,0.3608,98984.0,98966.0,0.0629]
[1732263153208,0.12724809,98982.0,98977.0,0.050453]
[1732263153596,0.12724809,98982.0,98978.0,0.050452]
[1732263154404,0.12724809,98982.0,98980.0,0.050451]
[1732263155002,0.48077909,98982.0,98980.0,0.050451]
[1732263155310,0.050451,98981.0,98980.0,0.050451]
[1732263156004,0.12724809,98982.0,98980.0,0.050451]
[1732263156005,0.12096863,98982.0,98980.0,0.050451]
[1732263156202,0.12096863,98982.0,98972.0,0.3608]
[1732263156203,0.12096863,98982.0,98981.0,0.050451]
[1732263156402,1.50052001,98988.0,98987.0,0.050448]
[1732263156603,1.5,98988.0,98987.0,0.050448]
[1732263156804,1.853528,98988.0,98987.0,0.050448]
[1732263158514,0.05045,98984.0,98972.0,0.3608]
[1732263158713,0.05045,98983.0,98982.0,0.05045]
[1732263161912,0.00151551,99003.0,99000.0,0.050442]
[1732263162216,0.05195551,99003.0,99002.0,0.050441]
[1732263163710,0.00151551,99003.0,99002.0,0.050441]
[1732263163909,0.00052001,99009.0,99008.0,0.050438]
[1732263164111,0.050435,99014.0,99013.0,0.050434]
[1732263164413,1.550435,99014.0,99013.0,0.050434]
[1732263165215,0.12724809,99020.0,99019.0,0.050432]
[1732263165417,0.12724809,99030.0,99029.0,0.050427]
[1732263165721,0.12724809,99030.0,99013.0,0.050434]
[1732263165722,0.050435,99014.0,99013.0,0.0024]
[1732263166021,0.10212,99016.0,98998.0,0.3608]
[1732263166317,0.05044,99003.0,99002.0,0.050441]
[1732263166519,0.12724809,99008.0,98995.0,0.0024]
[1732263166710,0.12724809,99005.0,98995.0,0.0024]
[1732263167110,0.050443,98997.0,98996.0,0.0317]
[1732263167311,0.12724809,99005.0,98996.0,0.0317]
[1732263168119,0.050443,98997.0,98996.0,0.0317]
[1732263171519,0.050443,98997.0,98996.0,0.442944]
[1732263171818,0.050443,98997.0,98996.0,0.082144]
[1732263174017,0.050443,98997.0,98996.0,0.0317]
[1732263174323,0.050443,98997.0,98996.0,0.3925]
[1732263174920,0.050443,98997.0,98996.0,0.442944]
[1732263175123,0.050441,99002.0,99001.0,0.050439]
[1732263175809,0.12724809,99006.0,98996.0,0.39342]
[1732263175810,0.12724809,99006.0,99005.0,0.050439]
[1732263176022,0.050438,99008.0,98997.0,0.050443]
[1732263176323,1.6277681,99015.0,99006.0,0.050438]
[1732263176515,1.6277681,99015.0,98996.0,0.39342]
[1732263176516,0.050438,99008.0,99007.0,0.0302]
[1732263176715,0.050438,99008.0,99007.0,0.080638]
[1732263177318,0.050437,99012.0,99011.0,0.050435]
[1732263178222,1.6278081,99015.0,99014.0,0.050435]
[1732263178416,1.67768209,99015.0,99014.0,0.050435]
[1732263179027,0.050437,99011.0,99010.0,0.050436]
[1732263179223,1.5,99015.0,99008.0,0.0311]
[1732263179224,0.050437,99009.0,99008.0,0.0311]
[1732263179912,0.04416009,99009.0,99005.0,0.3608]
[1732263180125,0.050439,99006.0,99005.0,0.3608]
[1732263180318,0.050444,98996.0,98995.0,0.0327]
[1732263181321,0.050444,98996.0,98995.0,0.083144]
[1732263181526,0.12724809,99006.0,98995.0,0.0327]
[1732263181822,0.050441,99001.0,99000.0,0.05044]
[1732263182213,0.10836168,99006.0,98995.0,0.0327]
[1732263182414,0.050441,99002.0,98996.0,0.050444]
[1732263182622,0.050441,99002.0,99001.0,0.050441]
[1732263182921,0.050441,99002.0,99001.0,0.411241]
[1732263184023,0.12724809,99005.0,99001.0,0.3608]
[1732263184328,0.00052001,99015.0,99002.0,0.050441]
[1732263184524,0.050435,99014.0,99013.0,0.050435]
[1732263185222,0.050433,99018.0,99017.0,0.050432]
[1732263185419,1.50052001,99019.0,99002.0,0.0323]
[1732263185624,0.050438,99009.0,99008.0,0.050437]
[1732263186823,0.05044,99004.0,99003.0,0.05044]
[1732263187421,0.050438,99009.0,99008.0,0.050436]
[1732263188332,0.05044,99004.0,99003.0,0.05044]
[1732263189223,0.12724809,99013.0,98997.0,0.3608]
[1732263189621,0.12724809,99013.0,98998.0,0.050442]
[1732263189821,0.05044,99004.0,99000.0,0.050441]
[1732263190018,0.050438,99008.0,98997.0,0.3608]
[1732263190324,0.050438,99008.0,99007.0,0.411238]
[1732263190524,0.0312,99015.0,99007.0,0.411238]
[1732263190525,0.0101,99025.0,99008.0,0.050437]
[1732263190727,0.050427,99028.0,99026.0,0.050428]
[1732263191029,0.02929439,99028.0,99026.0,0.050428]
[1732263191529,1.50052001,99029.0,99024.0,0.3608]
[1732263191530,0.050429,99025.0,99024.0,0.3608]
[1732263191827,0.05043,99022.0,99016.0,0.050433]
[1732263192032,0.12724809,99020.0,99016.0,0.050433]
[1732263192626,0.12724809,99020.0,99010.0,0.0646]
[1732263192837,0.12724809,99020.0,99017.0,0.050433]
[1732263193019,0.050431,99021.0,99010.0,0.0646]
[1732263193329,0.05043,99024.0,99021.0,0.050431]
[1732263193535,0.12724809,99027.0,99017.0,0.3608]
[1732263193718,0.00056001,99029.0,99026.0,0.3608]
[1732263193919,0.12724809,99030.0,99029.0,0.050427]
[1732263194127,1.62724809,99030.0,99029.0,0.050427]
[1732263194327,1.5,99030.0,99029.0,0.050427]
[1732263194523,0.0015155,99038.0,99026.0,0.3608]
[1732263194723,0.0015155,99038.0,99037.0,0.050423]
[1732263195122,1.5015155,99038.0,99037.0,0.050423]
[1732263195831,0.0015155,99038.0,99037.0,0.050423]
[1732263196533,0.0015155,99038.0,99035.0,0.3608]
[1732263196830,0.050423,99037.0,99026.0,0.3608]
[1732263197030,0.0015155,99038.0,99026.0,0.411228]
[1732263197031,0.050426,99031.0,99026.0,0.411228]
[1732263197232,0.050426,99031.0,99027.0,0.050428]
[1732263197532,0.12724809,99036.0,99026.0,0.3608]
[1732263197533,0.12724809,99036.0,99028.0,0.050427]
[1732263197731,0.050426,99030.0,99026.0,0.3608]
[1732263197921,0.12724809,99036.0,99026.0,0.3608]
[1732263198124,0.050428,99028.0,99026.0,0.3608]
[1732263198523,0.050428,99028.0,99026.0,0.2108]
[1732263198825,0.050437,99010.0,98991.0,0.050446]
[1732263199031,0.050444,98995.0,98991.0,0.0024]
[1732263199229,0.411244,98995.0,98987.0,0.050448]
[1732263199726,0.411244,98995.0,98985.0,0.050449]
[1732263199928,0.411244,98995.0,98978.0,0.10496]
[1732263200231,0.411244,98995.0,98987.0,0.050448]
[1732263200422,0.411244,98995.0,98982.0,0.05045]
[1732263200618,0.411244,98995.0,98983.0,0.05045]
[1732263200828,0.411244,98995.0,98985.0,0.050449]
[1732263201133,0.411244,98995.0,98978.0,0.10496]
[1732263201430,0.411244,98995.0,98987.0,0.050448]
[1732263203024,0.050448,98988.0,98987.0,0.050448]
[1732263204528,0.3608,98995.0,98987.0,0.050448]
[1732263204819,0.050448,98988.0,98987.0,0.050448]
[1732263205232,0.050449,98985.0,98984.0,0.05045]
[1732263205429,0.411249,98985.0,98984.0,0.05045]
[1732263207035,0.3608,98985.0,98984.0,0.05045]
[1732263209430,0.050446,98992.0,98980.0,0.0325]
[1732263209631,0.050446,98992.0,98990.0,0.050447]
[1732263209831,0.050446,98992.0,98991.0,0.0321]
[1732263211135,0.050446,98992.0,98991.0,0.082546]
[1732263211337,0.050446,98992.0,98988.0,0.050448]
[1732263211530,0.3608,98995.0,98980.0,0.0325]
[1732263211531,0.050451,98984.0,98983.0,0.05045]
[1732263213233,0.3608,98986.0,98983.0,0.05045]
[1732263213234,0.34191855,98986.0,98983.0,0.05045]
[1732263213742,0.050451,98984.0,98983.0,0.05045]
[1732263214139,0.050451,98982.0,98981.0,0.082551]
[1732263214649,0.34191855,98986.0,98981.0,0.082551]
[1732263214836,0.050451,98982.0,98981.0,0.082551]
[1732263221747,0.3608,98987.0,98981.0,0.0321]
[1732263221938,0.3608,98987.0,98986.0,0.050449]
[1732263222334,0.3608,98995.0,98986.0,0.050449]
[1732263222548,0.3608,98995.0,98994.0,0.050445]
[1732263223547,0.411244,98995.0,98994.0,0.050445]
[1732263226236,0.3608,98995.0,98994.0,0.050445]
[1732263226544,0.3608,98995.0,98982.0,0.3608]
[1732263226751,0.12724809,98992.0,98985.0,0.050449]
[1732263226935,0.050448,98988.0,98986.0,0.050449]
[1732263227142,0.050448,98988.0,98987.0,0.050448]
[1732263227353,0.050446,98992.0,98991.0,0.050446]
[1732263227651,0.050445,98994.0,98992.0,0.050445]
[1732263227844,0.3608,98995.0,98982.0,0.4698]
[1732263228041,0.12724809,98992.0,98987.0,0.050448]
[1732263228242,0.12724809,98992.0,98982.0,0.47044]
[1732263228440,0.050448,98987.0,98985.0,0.050449]
[1732263228742,0.050448,98987.0,98986.0,0.050449]
[1732263228947,0.12724809,98992.0,98989.0,0.050447]
[1732263229340,0.050447,98990.0,98989.0,0.050447]
[1732263231049,0.3608,98995.0,98974.0,0.0331]
[1732263231250,0.12724809,98990.0,98987.0,0.050448]
[1732263231437,0.3608,98995.0,98987.0,0.050448]
[1732263231635,0.050449,98986.0,98974.0,0.0331]
[1732263231841,0.3608,98995.0,98974.0,0.0331]
[1732263231842,0.12724809,98984.0,98974.0,0.0331]
[1732263232047,0.07052135,98984.0,98981.0,0.050451]
[1732263232245,0.3608,98987.0,98981.0,0.050451]
[1732263232246,0.050451,98982.0,98981.0,0.050451]
[1732263232444,0.050451,98983.0,98982.0,0.05045]
[1732263232848,0.3608,98987.0,98974.0,0.0331]
[1732263233243,0.050449,98986.0,98983.0,0.05045]
[1732263233444,0.050449,98986.0,98974.0,0.0331]
[1732263233938,0.3608,98987.0,98974.0,0.0331]
[1732263234246,0.05045,98984.0,98983.0,0.05045]
[1732263234550,0.3608,98987.0,98980.0,0.050452]
[1732263234849,0.050451,98981.0,98980.0,0.050452]
[1732263236547,0.12724809,98991.0,98974.0,0.0331]
[1732263236548,0.050454,98976.0,98974.0,0.0331]
[1732263236845,0.050453,98979.0,98978.0,0.050453]
[1732263237047,0.050453,98979.0,98976.0,0.050453]
[1732263237242,0.050453,98979.0,98974.0,0.0331]
[1732263237644,0.050453,98979.0,98978.0,0.050453]
[1732263239853,0.050453,98978.0,98975.0,0.050454]
[1732263240054,0.12724809,98984.0,98974.0,0.0331]
[1732263240456,0.050452,98980.0,98979.0,0.050452]
[1732263240754,0.050454,98975.0,98974.0,0.083555]
[1732263241154,0.3608,98987.0,98974.0,0.0331]
[1732263241348,0.050451,98981.0,98980.0,0.050452]
[1732263242846,0.12724809,98984.0,98980.0,0.050452]
[1732263243046,0.050451,98981.0,98980.0,0.050452]
[1732263243450,0.12724809,98984.0,98980.0,0.050452]
[1732263243655,0.050451,98981.0,98980.0,0.050452]
[1732263244665,0.05045,98983.0,98980.0,0.050451]
[1732263244847,0.12724809,98984.0,98980.0,0.050451]
[1732263245051,0.050451,98981.0,98980.0,0.050451]
[1732263247055,0.12724809,98984.0,98980.0,0.050451]
[1732263247056,0.02641627,98984.0,98980.0,0.050451]
[1732263247657,0.411251,98981.0,98980.0,0.050451]
[1732263249046,0.3608,98981.0,98980.0,0.050451]
[1732263253954,0.30406891,98981.0,98980.0,0.050451]
[1732263254961,0.3608,98982.0,98981.0,0.050451]
[1732263255158,0.050448,98987.0,98974.0,0.0331]
[1732263255664,0.050448,98987.0,98975.0,0.0301]
[1732263255851,0.050448,98987.0,98981.0,0.050451]
[1732263256161,0.12724809,98990.0,98982.0,0.05045]
[1732263256162,0.050449,98986.0,98982.0,0.05045]
[1732263256464,0.050449,98986.0,98975.0,0.0301]
[1732263256760,0.12724809,98990.0,98975.0,0.0301]
[1732263256961,0.050449,98986.0,98983.0,0.05045]
[1732263257450,0.050449,98985.0,98984.0,0.05045]
[1732263258559,0.050451,98982.0,98981.0,0.050451]
[1732263264253,0.3608,98987.0,98981.0,0.050451]
[1732263264461,0.050451,98982.0,98976.0,0.3608]
[1732263264653,0.050451,98982.0,98981.0,0.050451]
[1732263273464,0.050453,98979.0,98975.0,0.0301]
[1732263273655,0.050453,98979.0,98978.0,0.050453]
[1732263275670,0.16695096,98985.0,98978.0,0.050453]
[1732263275870,0.050452,98979.0,98978.0,0.050453]
[1732263277166,0.16695096,98985.0,98978.0,0.050453]
[1732263277470,0.050452,98980.0,98979.0,0.050452]
[1732263278663,0.3608,98982.0,98974.0,0.0331]
[1732263278868,0.050454,98975.0,98974.0,0.0331]
[1732263279062,0.050459,98966.0,98965.0,0.0304]
[1732263279265,0.050462,98961.0,98960.0,0.0315]
[1732263280278,0.3608,99013.0,98960.0,0.49666]
[1732263280464,0.08347548,98970.0,98961.0,0.10436]
[1732263280670,0.08347548,98980.0,98962.0,0.031]
[1732263280875,0.050457,98971.0,98962.0,0.031]
[1732263281170,0.08347548,98972.0,98960.0,0.36144]
[1732263281373,0.050462,98961.0,98960.0,0.3608]
[1732263281570,0.44427548,98970.0,98947.0,0.0305]
[1732263281762,0.08347548,98960.0,98947.0,0.0305]
[1732263281967,0.050465,98954.0,98947.0,0.0305]
[1732263282190,0.08347548,98960.0,98947.0,0.0305]
[1732263282372,0.050467,98951.0,98947.0,0.0305]
[1732263282875,0.050467,98951.0,98947.0,0.441769]
[1732263283075,0.050467,98951.0,98948.0,0.050468]
[1732263283773,0.050465,98955.0,98952.0,0.050466]
[1732263284177,0.050463,98959.0,98952.0,0.050466]
[1732263284368,0.050465,98954.0,98952.0,0.050466]
[1732263285373,0.04997487,98954.0,98952.0,0.050466]
[1732263286185,0.04997487,98954.0,98953.0,0.050466]
[1732263287378,0.04997487,98954.0,98939.0,0.031]
[1732263287379,0.050471,98947.0,98946.0,0.050469]
[1732263289673,0.3608,98954.0,98946.0,0.050469]
[1732263290067,0.411266,98954.0,98953.0,0.050466]
[1732263290275,0.3608,98954.0,98953.0,0.050466]
[1732263290867,0.10436,98963.0,98943.0,0.3608]
[1732263291073,0.050462,98960.0,98959.0,0.050462]
[1732263291674,1.50060001,98967.0,98950.0,0.12725469]
[1732263291878,1.5,98967.0,98965.0,0.050459]
[1732263292084,0.050459,98966.0,98965.0,0.050459]
[1732263293179,1.50060001,98967.0,98954.0,0.0302]
[1732263293378,1.5,98967.0,98966.0,0.050459]
[1732263294184,0.3608,98972.0,98971.0,0.050456]
[1732263294487,1.8608,98972.0,98971.0,0.050456]
[1732263294789,1.911256,98972.0,98971.0,0.050456]
[1732263295079,1.8608,98972.0,98971.0,0.050456]
[1732263295285,1.5,98972.0,98971.0,0.050456]
[1732263296077,0.12283993,98979.0,98971.0,0.050456]
[1732263296078,0.12283993,98979.0,98978.0,0.050453]
[1732263296585,1.67329193,98979.0,98978.0,0.050453]
[1732263296886,1.62283993,98979.0,98978.0,0.050453]
[1732263297082,1.5,98979.0,98978.0,0.050453]
[1732263297787,1.550452,98979.0,98978.0,0.050453]
[1732263299182,1.5,98979.0,98972.0,0.0302]
[1732263299387,0.050455,98974.0,98973.0,0.050455]
[1732263299788,0.050455,98973.0,98972.0,0.0302]
[1732263300402,0.050462,98961.0,98943.0,0.050471]
[1732263300583,0.050469,98946.0,98945.0,0.01161605]
[1732263300882,0.050469,98946.0,98945.0,0.00151605]
[1732263301074,0.050469,98947.0,98930.0,0.0101]
[1732263301274,0.050477,98931.0,98930.0,0.0101]
[1732263305983,0.35450985,98932.0,98930.0,0.0101]
[1732263306376,0.050477,98931.0,98930.0,0.0101]
[1732263307186,1.550477,98931.0,98930.0,0.0101]
[1732263307687,0.35450985,98932.0,98931.0,0.050477]
[1732263307985,0.35450985,98932.0,98931.0,0.01145104]
[1732263308395,0.65774985,98932.0,98931.0,0.01145104]
[1732263308576,0.65774985,98932.0,98930.0,0.0101]
[1732263308781,0.353717,98931.0,98930.0,0.0101]
[1732263309683,0.28432906,98931.0,98930.0,0.0101]
[1732263309893,0.39044906,98931.0,98930.0,0.0101]
[1732263310389,0.050477,98931.0,98930.0,0.0101]
[1732263310794,0.353717,98931.0,98930.0,0.0101]
[1732263312391,0.050477,98931.0,98930.0,0.0101]
[1732263315293,1.85502986,98932.0,98930.0,0.0101]
[1732263315482,1.85450985,98932.0,98930.0,0.0101]
[1732263316188,1.85450985,98932.0,98931.0,0.01891094]
[1732263316396,1.85450985,98932.0,98931.0,0.06938794]
[1732263316796,1.85450985,98932.0,98931.0,0.10248794]
[1732263317097,0.3608,98940.0,98931.0,0.12878564]
[1732263317292,0.3608,98940.0,98938.0,0.050473]
[1732263317493,0.3608,98940.0,98939.0,0.01891094]
[1732263317996,1.8608,98940.0,98939.0,0.01891094]
[1732263318495,1.5,98940.0,98939.0,0.01891094]
[1732263318699,0.12725469,98950.0,98939.0,0.01891094]
[1732263318889,0.12725469,98950.0,98931.0,0.0982]
[1732263318890,0.12725469,98950.0,98949.0,0.01891094]
[1732263319092,0.05198361,98951.0,98949.0,0.01891094]
[1732263319283,0.00151661,98951.0,98950.0,0.06937794]
[1732263319599,0.00151661,98951.0,98950.0,0.01891094]
[1732263319803,1.50151661,98951.0,98950.0,0.01891094]
[1732263321486,1.50151661,98951.0,98950.0,0.06937794]
[1732263321995,0.050454,98976.0,98968.0,0.050458]
[1732263322198,0.00808,98971.0,98970.0,0.43016794]
[1732263322395,1.50808,98971.0,98970.0,0.43016794]
[1732263323094,1.5,98971.0,98970.0,0.43016794]
[1732263324389,1.5,98971.0,98970.0,0.06936794]
[1732263325398,0.050456,98971.0,98970.0,0.01891094]
[1732263325996,0.050463,98958.0,98957.0,0.0318]
[1732263326202,0.050463,98958.0,98957.0,0.05071094]
[1732263327212,1.550456,98971.0,98957.0,0.05071094]
[1732263327213,1.5,98971.0,98957.0,0.05071094]
[1732263327396,0.12725469,98980.0,98972.0,0.050456]
[1732263327397,0.050455,98973.0,98972.0,0.050456]
[1732263327907,0.050455,98973.0,98972.0,0.06936694]
[1732263328805,0.050455,98973.0,98972.0,0.01891094]
[1732263329191,0.3608,98973.0,98957.0,0.0318]
[1732263329393,0.050463,98958.0,98957.0,0.0318]
[1732263329589,0.12725469,98970.0,98957.0,0.0318]
[1732263329894,0.050459,98966.0,98965.0,0.01891094]
[1732263330090,0.05046,98965.0,98964.0,0.01891094]
[1732263330303,0.050466,98953.0,98952.0,0.050466]
[1732263330492,0.3608,98956.0,98951.0,0.0305]
[1732263330694,0.050466,98952.0,98951.0,0.0305]
[1732263330899,0.050466,98952.0,98933.0,0.0305]
[1732263330900,0.050466,98952.0,98938.0,0.050473]
[1732263331197,0.050475,98939.0,98938.0,0.050473]
[1732263331589,0.050475,98939.0,98938.0,0.06938394]
[1732263333297,0.050475,98939.0,98938.0,0.01891094]
[1732263333901,0.411275,98939.0,98938.0,0.01891094]
[1732263334096,0.050485,98925.0,98924.0,0.050485]
[1732263334298,0.3608,98931.0,98924.0,0.05101094]
[1732263334713,0.411282,98931.0,98929.0,0.01891094]
[1732263334903,0.050482,98930.0,98929.0,0.01891094]